[Event "Titled Tuesday Blitz April 18 Late 2023"]
[White "Rastbod, Ali"]
[Black "Bartel, Mateusz"]
[WhiteFideId "12567477"]
[BlackFideId "1112635"]
[WhiteElo "2248"]
[BlackElo "2521"]
[Result "0-1"]
[Round "03"]
[TimeControl "180+2"]
[Date "2023.04.18"]
[WhiteClock "0:00:04"]
[BlackClock "0:00:12"]

1. c4 {[%clk 0:03:00]}  e5 {[%clk 0:02:56]} 2. Nc3 {[%clk 0:03:00]}  Bb4 {[%clk 0:02:55]} 3. Nd5 {[%clk 0:03:00]}  a5 {[%clk 0:02:53]} 4. a3 {[%clk 0:02:54]}  Be7 {[%clk 0:02:53]} 5. d4 {[%clk 0:02:53]}  exd4 {[%clk 0:02:52]} 6. Qxd4 {[%clk 0:02:54]}  Nf6 {[%clk 0:02:46]} 7. Nxe7 {[%clk 0:02:52]}  Qxe7 {[%clk 0:02:46]} 8. f3 {[%clk 0:02:51]}  Nc6 {[%clk 0:02:40]} 9. Qd1 {[%clk 0:02:45]}  Nh5 {[%clk 0:02:26]} 10. g3 {[%clk 0:02:08]}  f5 {[%clk 0:02:20]} 11. Nh3 {[%clk 0:02:03]}  O-O {[%clk 0:02:20]} 12. Bg2 {[%clk 0:02:02]}  Kh8 {[%clk 0:02:19]} 13. b3 {[%clk 0:01:51]}  d6 {[%clk 0:01:49]} 14. O-O {[%clk 0:01:45]}  Be6 {[%clk 0:01:48]} 15. a4 {[%clk 0:00:51]}  Rae8 {[%clk 0:01:46]} 16. Bb2 {[%clk 0:00:47]}  Bg8 {[%clk 0:01:45]} 17. Re1 {[%clk 0:00:45]}  f4 {[%clk 0:01:29]} 18. g4 {[%clk 0:00:39]}  Nf6 {[%clk 0:01:29]} 19. Qd2 {[%clk 0:00:35]}  Qe3+ {[%clk 0:01:22]} 20. Qxe3 {[%clk 0:00:35]}  Rxe3 {[%clk 0:01:23]} 21. Nxf4 {[%clk 0:00:25]}  Rxb3 {[%clk 0:01:22]} 22. Rab1 {[%clk 0:00:23]}  Bxc4 {[%clk 0:01:18]} 23. g5 {[%clk 0:00:24]}  Ne8 {[%clk 0:01:07]} 24. e3 {[%clk 0:00:24]}  Rb4 {[%clk 0:00:39]} 25. Bc3 {[%clk 0:00:22]}  Rxb1 {[%clk 0:00:36]} 26. Rxb1 {[%clk 0:00:23]}  b6 {[%clk 0:00:34]} 27. Nh5 {[%clk 0:00:21]}  Bf7 {[%clk 0:00:30]} 28. Ng3 {[%clk 0:00:19]}  Ne7 {[%clk 0:00:28]} 29. f4 {[%clk 0:00:17]}  Bg6 {[%clk 0:00:21]} 30. Rf1 {[%clk 0:00:15]}  Nf5 {[%clk 0:00:21]} 31. e4 {[%clk 0:00:12]}  Ne3 {[%clk 0:00:20]} 32. Rf2 {[%clk 0:00:12]}  Nxg2 {[%clk 0:00:20]} 33. Kxg2 {[%clk 0:00:13]}  Bf7 {[%clk 0:00:19]} 34. f5 {[%clk 0:00:11]}  Bb3 {[%clk 0:00:19]} 35. h4 {[%clk 0:00:10]}  Bxa4 {[%clk 0:00:17]} 36. h5 {[%clk 0:00:11]}  Kg8 {[%clk 0:00:18]} 37. h6 {[%clk 0:00:11]}  g6 {[%clk 0:00:18]} 38. Kh3 {[%clk 0:00:06]}  Bd7 {[%clk 0:00:17]} 39. Kh4 {[%clk 0:00:05]}  Rf7 {[%clk 0:00:16]} 40. Ba1 {[%clk 0:00:04]}  d5 {[%clk 0:00:15]} 41. f6 {[%clk 0:00:03]}  dxe4 {[%clk 0:00:14]} 42. Nxe4 {[%clk 0:00:04]}  Bc6 {[%clk 0:00:14]} 43. Ng3 {[%clk 0:00:04]}  Nd6 {[%clk 0:00:14]} 44. Rd2 {[%clk 0:00:05]}  Rd7 {[%clk 0:00:14]} 45. Re2 {[%clk 0:00:03]}  Kf7 {[%clk 0:00:14]} 46. Be5 {[%clk 0:00:03]}  Bd5 {[%clk 0:00:12]} 47. Bxd6 {[%clk 0:00:03]}  cxd6 {[%clk 0:00:13]} 48. Nf1 {[%clk 0:00:03]}  Bc4 {[%clk 0:00:12]} 49. Re1 {[%clk 0:00:04]}  Bxf1 {[%clk 0:00:13]} 50. Rxf1 {[%clk 0:00:04]}  Ra7 {[%clk 0:00:12]} 51. Rc1 {[%clk 0:00:04]}  a4 {[%clk 0:00:13]} 52. Rc8 {[%clk 0:00:04]}  a3 {[%clk 0:00:13]} 53. Rh8 {[%clk 0:00:05]}  Ke6 {[%clk 0:00:14]} 54. Re8+ {[%clk 0:00:05]}  Kf5 {[%clk 0:00:14]} 55. Re7 {[%clk 0:00:05]}  Ra8 {[%clk 0:00:14]} 56. f7 {[%clk 0:00:05]}  Rf8 {[%clk 0:00:13]} 57. Ra7 {[%clk 0:00:04]}  Ke6 {[%clk 0:00:14]} 58. Rxa3 {[%clk 0:00:04]}  Rxf7 {[%clk 0:00:14]} 59. Rb3 {[%clk 0:00:05]}  Rb7 {[%clk 0:00:14]} 60. Kg4 {[%clk 0:00:05]}  Kd5 {[%clk 0:00:14]} 61. Kf4 {[%clk 0:00:05]}  b5 {[%clk 0:00:14]} 62. Rd3+ {[%clk 0:00:05]}  Kc5 {[%clk 0:00:14]} 63. Rd1 {[%clk 0:00:06]}  b4 {[%clk 0:00:14]} 64. Rc1+ {[%clk 0:00:06]}  Kd5 {[%clk 0:00:15]} 65. Rd1+ {[%clk 0:00:07]}  Kc6 {[%clk 0:00:15]} 66. Rc1+ {[%clk 0:00:07]}  Kb5 {[%clk 0:00:15]} 67. Ke4 {[%clk 0:00:07]}  b3 {[%clk 0:00:16]} 68. Kd5 {[%clk 0:00:08]}  b2 {[%clk 0:00:15]} 69. Rb1 {[%clk 0:00:07]}  Ka4 {[%clk 0:00:15]} 70. Kc6 {[%clk 0:00:05]}  Rb5 {[%clk 0:00:12]} 71. Kxd6 {[%clk 0:00:05]}  Ka3 {[%clk 0:00:13]} 72. Ke6 {[%clk 0:00:04]}  Rb7 {[%clk 0:00:12]} 73. Kf6 {[%clk 0:00:03]}  Ka2 {[%clk 0:00:12]} 74. Rxb2+ {[%clk 0:00:04]}  Kxb2 {[%clk 0:00:12]} 0-1


[Site "https://www.chess.com"]

[Event "Titled Tuesday Blitz April 18 Late 2023"]
[White "Costachi, Mihnea"]
[Black "The_Sherman_Variation"]
[WhiteFideId "1217518"]
[WhiteElo "2456"]
[BlackElo "2529"]
[Result "1-0"]
[Round "03"]
[TimeControl "180+2"]
[Date "2023.04.18"]
[WhiteClock "0:00:08"]
[BlackClock "0:00:18"]

1. Nc3 {[%clk 0:03:00]}  Nf6 {[%clk 0:02:54]} 2. e4 {[%clk 0:02:54]}  d6 {[%clk 0:02:51]} 3. d4 {[%clk 0:02:54]}  a6 {[%clk 0:02:49]} 4. Nf3 {[%clk 0:02:53]}  g6 {[%clk 0:02:49]} 5. Be2 {[%clk 0:02:51]}  Bg7 {[%clk 0:02:49]} 6. a4 {[%clk 0:02:51]}  O-O {[%clk 0:02:48]} 7. h3 {[%clk 0:02:52]}  Nbd7 {[%clk 0:02:46]} 8. O-O {[%clk 0:02:52]}  e5 {[%clk 0:02:46]} 9. dxe5 {[%clk 0:02:53]}  Nxe5 {[%clk 0:02:43]} 10. Nxe5 {[%clk 0:02:50]}  dxe5 {[%clk 0:02:44]} 11. Be3 {[%clk 0:02:48]}  Be6 {[%clk 0:02:43]} 12. Bc5 {[%clk 0:02:47]}  Re8 {[%clk 0:02:42]} 13. a5 {[%clk 0:02:46]}  Nd7 {[%clk 0:02:36]} 14. Be3 {[%clk 0:02:43]}  Nb8 {[%clk 0:02:35]} 15. Nd5 {[%clk 0:02:41]}  f5 {[%clk 0:02:16]} 16. f3 {[%clk 0:02:38]}  Nc6 {[%clk 0:02:03]} 17. c3 {[%clk 0:02:38]}  Rc8 {[%clk 0:01:59]} 18. Bc4 {[%clk 0:02:34]}  Kh8 {[%clk 0:01:49]} 19. Qe2 {[%clk 0:02:33]}  f4 {[%clk 0:01:49]} 20. Bf2 {[%clk 0:02:28]}  Qg5 {[%clk 0:01:49]} 21. Kh1 {[%clk 0:02:17]}  Bxd5 {[%clk 0:01:34]} 22. Bxd5 {[%clk 0:02:16]}  Nd8 {[%clk 0:01:32]} 23. Rfd1 {[%clk 0:02:09]}  c6 {[%clk 0:01:32]} 24. Ba2 {[%clk 0:02:07]}  Qe7 {[%clk 0:01:31]} 25. b4 {[%clk 0:02:04]}  Ne6 {[%clk 0:01:28]} 26. Bxe6 {[%clk 0:02:00]}  Qxe6 {[%clk 0:01:29]} 27. Bb6 {[%clk 0:02:00]}  h5 {[%clk 0:01:24]} 28. Rd3 {[%clk 0:01:57]}  g5 {[%clk 0:01:23]} 29. Rad1 {[%clk 0:01:57]}  Bf8 {[%clk 0:01:23]} 30. Rd7 {[%clk 0:01:56]}  Re7 {[%clk 0:01:22]} 31. Qd3 {[%clk 0:01:54]}  g4 {[%clk 0:01:18]} 32. Rxe7 {[%clk 0:01:48]}  Qxe7 {[%clk 0:01:16]} 33. Qd7 {[%clk 0:01:44]}  Qxd7 {[%clk 0:00:58]} 34. Rxd7 {[%clk 0:01:43]}  c5 {[%clk 0:00:59]} 35. bxc5 {[%clk 0:01:31]}  g3 {[%clk 0:00:58]} 36. Bc7 {[%clk 0:01:16]}  Kg8 {[%clk 0:00:51]} 37. Bxe5 {[%clk 0:01:12]}  Rxc5 {[%clk 0:00:49]} 38. Bxf4 {[%clk 0:01:12]}  h4 {[%clk 0:00:50]} 39. Kg1 {[%clk 0:00:59]}  Rxa5 {[%clk 0:00:48]} 40. Kf1 {[%clk 0:00:59]}  Ra2 {[%clk 0:00:45]} 41. Rd2 {[%clk 0:00:54]}  Ra1+ {[%clk 0:00:42]} 42. Ke2 {[%clk 0:00:54]}  a5 {[%clk 0:00:38]} 43. Rd5 {[%clk 0:00:24]}  Rg1 {[%clk 0:00:34]} 44. Rxa5 {[%clk 0:00:21]}  Rxg2+ {[%clk 0:00:34]} 45. Ke3 {[%clk 0:00:21]}  Rc2 {[%clk 0:00:31]} 46. Kd3 {[%clk 0:00:17]}  Rf2 {[%clk 0:00:30]} 47. Ke3 {[%clk 0:00:16]}  b6 {[%clk 0:00:28]} 48. Rg5+ {[%clk 0:00:16]}  Kf7 {[%clk 0:00:28]} 49. Be5 {[%clk 0:00:14]}  Bc5+ {[%clk 0:00:26]} 50. Bd4 {[%clk 0:00:15]}  Rc2 {[%clk 0:00:23]} 51. Kd3 {[%clk 0:00:12]}  Rf2 {[%clk 0:00:20]} 52. Bxf2 {[%clk 0:00:11]}  Bxf2 {[%clk 0:00:20]} 53. Ke2 {[%clk 0:00:08]}  Kf6 {[%clk 0:00:20]} 54. f4 {[%clk 0:00:08]}  Bc5 {[%clk 0:00:17]} 55. Kf3 {[%clk 0:00:08]}  Ba3 {[%clk 0:00:18]} 56. Rh5 {[%clk 0:00:08]} 1-0


[Site "https://www.chess.com"]

[Event "Titled Tuesday Blitz April 18 Late 2023"]
[White "Leenhouts, Koen"]
[Black "Kowalski, Igor"]
[WhiteFideId "1008439"]
[BlackFideId "1172468"]
[WhiteElo "2409"]
[BlackElo "2392"]
[Result "1/2-1/2"]
[Round "03"]
[TimeControl "180+2"]
[Date "2023.04.18"]
[WhiteClock "0:00:05"]
[BlackClock "0:00:15"]

1. c4 {[%clk 0:02:59]}  Nf6 {[%clk 0:02:58]} 2. Nc3 {[%clk 0:02:58]}  g6 {[%clk 0:02:58]} 3. e4 {[%clk 0:02:57]}  d6 {[%clk 0:02:57]} 4. d4 {[%clk 0:02:56]}  Bg7 {[%clk 0:02:58]} 5. f3 {[%clk 0:02:56]}  O-O {[%clk 0:02:58]} 6. Nge2 {[%clk 0:02:55]}  Nbd7 {[%clk 0:02:58]} 7. Ng3 {[%clk 0:02:51]}  h5 {[%clk 0:02:58]} 8. Be2 {[%clk 0:02:47]}  h4 {[%clk 0:02:52]} 9. Nf1 {[%clk 0:02:46]}  c5 {[%clk 0:02:52]} 10. d5 {[%clk 0:02:44]}  a6 {[%clk 0:02:48]} 11. Bg5 {[%clk 0:02:41]}  h3 {[%clk 0:02:46]} 12. gxh3 {[%clk 0:02:33]}  b5 {[%clk 0:02:46]} 13. Ne3 {[%clk 0:02:20]}  Nh7 {[%clk 0:02:40]} 14. Bh4 {[%clk 0:02:16]}  Rb8 {[%clk 0:02:32]} 15. Qd2 {[%clk 0:01:56]}  Ne5 {[%clk 0:02:25]} 16. f4 {[%clk 0:01:48]}  Nxc4 {[%clk 0:02:19]} 17. Nxc4 {[%clk 0:01:43]}  bxc4 {[%clk 0:02:19]} 18. Bxc4 {[%clk 0:01:43]}  Rb4 {[%clk 0:02:06]} 19. b3 {[%clk 0:01:38]}  Bxh3 {[%clk 0:02:02]} 20. Rc1 {[%clk 0:01:33]}  Qd7 {[%clk 0:01:33]} 21. Rg1 {[%clk 0:01:11]}  Kh8 {[%clk 0:01:23]} 22. Rg3 {[%clk 0:01:05]}  Bg4 {[%clk 0:01:19]} 23. h3 {[%clk 0:00:57]}  Bh5 {[%clk 0:01:19]} 24. Kf2 {[%clk 0:00:34]}  e5 {[%clk 0:01:04]} 25. dxe6 {[%clk 0:00:27]}  fxe6 {[%clk 0:01:05]} 26. Kg2 {[%clk 0:00:25]}  Bd4 {[%clk 0:00:38]} 27. Rf1 {[%clk 0:00:21]}  Nf6 {[%clk 0:00:32]} 28. Bg5 {[%clk 0:00:17]}  Qc6 {[%clk 0:00:27]} 29. Kh2 {[%clk 0:00:15]}  Nxe4 {[%clk 0:00:25]} 30. Nxe4 {[%clk 0:00:16]}  Qxe4 {[%clk 0:00:26]} 31. Bd3 {[%clk 0:00:15]}  Qd5 {[%clk 0:00:25]} 32. Bh6 {[%clk 0:00:14]}  Rg8 {[%clk 0:00:23]} 33. Bg5 {[%clk 0:00:09]}  Bg7 {[%clk 0:00:19]} 34. Qc2 {[%clk 0:00:07]}  Rd4 {[%clk 0:00:18]} 35. Rf2 {[%clk 0:00:04]}  Rf8 {[%clk 0:00:16]} 36. Bxg6 {[%clk 0:00:04]}  Rd1 {[%clk 0:00:15]} 37. Be4 {[%clk 0:00:02]}  Qd4 {[%clk 0:00:14]} 38. Rgg2 {[%clk 0:00:02]}  d5 {[%clk 0:00:10]} 39. Bf3 {[%clk 0:00:03]}  Bxf3 {[%clk 0:00:10]} 40. Rxf3 {[%clk 0:00:03]}  e5 {[%clk 0:00:10]} 41. Qg6 {[%clk 0:00:03]}  Qe4 {[%clk 0:00:10]} 42. Qh5+ {[%clk 0:00:03]}  Qh7 {[%clk 0:00:11]} 43. Qg4 {[%clk 0:00:02]}  e4 {[%clk 0:00:11]} 44. Rfg3 {[%clk 0:00:02]}  d4 {[%clk 0:00:11]} 45. Bh4 {[%clk 0:00:02]}  e3 {[%clk 0:00:11]} 46. Qxg7+ {[%clk 0:00:02]}  Qxg7 {[%clk 0:00:12]} 47. Rxg7 {[%clk 0:00:02]}  e2 {[%clk 0:00:13]} 48. R7g6 {[%clk 0:00:03]}  Kh7 {[%clk 0:00:12]} 49. R6g5 {[%clk 0:00:02]}  Rf6 {[%clk 0:00:12]} 50. Rh5+ {[%clk 0:00:02]}  Rh6 {[%clk 0:00:13]} 51. Re5 {[%clk 0:00:03]}  Rxh4 {[%clk 0:00:13]} 52. Re7+ {[%clk 0:00:03]}  Kh6 {[%clk 0:00:13]} 53. Re6+ {[%clk 0:00:04]}  Kh7 {[%clk 0:00:14]} 54. Re7+ {[%clk 0:00:04]}  Kh8 {[%clk 0:00:14]} 55. Re8+ {[%clk 0:00:04]}  Kh7 {[%clk 0:00:15]} 56. Re7+ {[%clk 0:00:05]} 1/2-1/2


[Site "https://www.chess.com"]

[Event "Titled Tuesday Blitz April 18 Late 2023"]
[White "Smirnov, Pavel"]
[Black "Boder, Jan"]
[WhiteFideId "4123425"]
[BlackFideId "16243226"]
[WhiteElo "2519"]
[BlackElo "2241"]
[Result "1-0"]
[Round "03"]
[TimeControl "180+2"]
[Date "2023.04.18"]
[WhiteClock "0:01:01"]
[BlackClock "0:00:07"]

1. d4 {[%clk 0:03:00]}  Nf6 {[%clk 0:02:58]} 2. c4 {[%clk 0:03:01]}  c5 {[%clk 0:02:58]} 3. d5 {[%clk 0:03:00]}  b5 {[%clk 0:02:59]} 4. cxb5 {[%clk 0:03:01]}  a6 {[%clk 0:02:59]} 5. e3 {[%clk 0:03:02]}  axb5 {[%clk 0:02:58]} 6. Bxb5 {[%clk 0:03:03]}  Qa5+ {[%clk 0:02:58]} 7. Nc3 {[%clk 0:03:02]}  Bb7 {[%clk 0:02:58]} 8. Bd2 {[%clk 0:03:03]}  Qb6 {[%clk 0:02:56]} 9. Nf3 {[%clk 0:03:03]}  Nxd5 {[%clk 0:02:56]} 10. Nxd5 {[%clk 0:03:04]}  Bxd5 {[%clk 0:02:56]} 11. a4 {[%clk 0:03:05]}  e6 {[%clk 0:02:56]} 12. O-O {[%clk 0:03:03]}  Be7 {[%clk 0:02:54]} 13. Bc3 {[%clk 0:03:04]}  O-O {[%clk 0:02:53]} 14. Nd2 {[%clk 0:03:04]}  Na6 {[%clk 0:02:45]} 15. e4 {[%clk 0:03:03]}  Bc6 {[%clk 0:02:39]} 16. Nc4 {[%clk 0:03:03]}  Qc7 {[%clk 0:01:43]} 17. Be5 {[%clk 0:03:02]}  d6 {[%clk 0:01:43]} 18. Nxd6 {[%clk 0:02:46]}  f6 {[%clk 0:01:27]} 19. Bg3 {[%clk 0:02:41]}  Rfd8 {[%clk 0:01:15]} 20. Bxc6 {[%clk 0:01:42]}  Qxc6 {[%clk 0:01:00]} 21. Qg4 {[%clk 0:01:42]}  f5 {[%clk 0:00:43]} 22. exf5 {[%clk 0:01:36]}  Bxd6 {[%clk 0:00:42]} 23. f6 {[%clk 0:01:36]}  Bf8 {[%clk 0:00:29]} 24. Rae1 {[%clk 0:01:34]}  Nc7 {[%clk 0:00:25]} 25. Re5 {[%clk 0:01:24]}  Rd7 {[%clk 0:00:20]} 26. Rh5 {[%clk 0:01:19]}  g6 {[%clk 0:00:20]} 27. Rg5 {[%clk 0:01:11]}  Ne8 {[%clk 0:00:14]} 28. Be5 {[%clk 0:01:10]}  Bh6 {[%clk 0:00:09]} 29. Rh5 {[%clk 0:01:07]}  Bf8 {[%clk 0:00:08]} 30. f7+ {[%clk 0:01:02]}  Rxf7 {[%clk 0:00:08]} 31. Qxg6+ {[%clk 0:01:02]}  Ng7 {[%clk 0:00:07]} 32. Qxh7# {[%clk 0:01:01]} 1-0


[Site "https://www.chess.com"]

[Event "Titled Tuesday Blitz April 18 Late 2023"]
[White "Lazavik, Denis"]
[Black "Averjanov, Alexey"]
[WhiteFideId "13515110"]
[BlackFideId "14109867"]
[WhiteElo "2560"]
[BlackElo "2622"]
[Result "1-0"]
[Round "03"]
[TimeControl "180+2"]
[Date "2023.04.18"]
[WhiteClock "0:01:32"]
[BlackClock "0:00:06"]

1. d4 {[%clk 0:03:00]}  d5 {[%clk 0:02:59]} 2. c4 {[%clk 0:03:01]}  dxc4 {[%clk 0:02:59]} 3. Nf3 {[%clk 0:03:02]}  Nf6 {[%clk 0:02:59]} 4. e3 {[%clk 0:03:02]}  e6 {[%clk 0:02:59]} 5. Bxc4 {[%clk 0:03:03]}  a6 {[%clk 0:02:59]} 6. O-O {[%clk 0:03:04]}  b5 {[%clk 0:02:59]} 7. Bd3 {[%clk 0:03:02]}  Bb7 {[%clk 0:03:00]} 8. a4 {[%clk 0:03:02]}  b4 {[%clk 0:03:00]} 9. Qe2 {[%clk 0:03:02]}  Nbd7 {[%clk 0:02:59]} 10. e4 {[%clk 0:03:02]}  Be7 {[%clk 0:02:58]} 11. Nbd2 {[%clk 0:03:01]}  c5 {[%clk 0:02:57]} 12. e5 {[%clk 0:03:02]}  Nd5 {[%clk 0:02:57]} 13. Nb3 {[%clk 0:03:02]}  cxd4 {[%clk 0:02:55]} 14. Bd2 {[%clk 0:03:02]}  O-O {[%clk 0:02:54]} 15. Qe4 {[%clk 0:03:02]}  g6 {[%clk 0:02:54]} 16. Qg4 {[%clk 0:03:02]}  Rc8 {[%clk 0:02:48]} 17. h4 {[%clk 0:03:02]}  h5 {[%clk 0:02:44]} 18. Qg3 {[%clk 0:03:02]}  Kg7 {[%clk 0:02:44]} 19. Nfxd4 {[%clk 0:02:55]}  Kh8 {[%clk 0:01:04]} 20. Nxe6 {[%clk 0:02:46]}  fxe6 {[%clk 0:01:05]} 21. Qxg6 {[%clk 0:02:46]}  Rf5 {[%clk 0:01:03]} 22. Bxf5 {[%clk 0:02:33]}  exf5 {[%clk 0:01:04]} 23. Qxh5+ {[%clk 0:02:33]}  Kg8 {[%clk 0:01:03]} 24. Qg6+ {[%clk 0:02:19]}  Kh8 {[%clk 0:01:02]} 25. e6 {[%clk 0:02:15]}  N7f6 {[%clk 0:00:58]} 26. Nd4 {[%clk 0:02:10]}  Qg8 {[%clk 0:00:50]} 27. Qh6+ {[%clk 0:02:08]}  Qh7 {[%clk 0:00:50]} 28. Qxh7+ {[%clk 0:02:08]}  Kxh7 {[%clk 0:00:50]} 29. Nxf5 {[%clk 0:02:08]}  Rg8 {[%clk 0:00:43]} 30. f3 {[%clk 0:02:07]}  Bc5+ {[%clk 0:00:39]} 31. Kh1 {[%clk 0:02:06]}  Nh5 {[%clk 0:00:33]} 32. Rac1 {[%clk 0:02:04]}  Bb6 {[%clk 0:00:32]} 33. g4 {[%clk 0:01:45]}  Nhf4 {[%clk 0:00:18]} 34. Nd6 {[%clk 0:01:44]}  Ba8 {[%clk 0:00:17]} 35. Ne4 {[%clk 0:01:37]}  Ne3 {[%clk 0:00:10]} 36. Nf6+ {[%clk 0:01:31]}  Kg7 {[%clk 0:00:06]} 37. Nxg8 {[%clk 0:01:32]} 1-0


[Site "https://www.chess.com"]

[Event "Titled Tuesday Blitz April 18 Late 2023"]
[White "benny_aizenberg"]
[Black "Demchenko, Anton"]
[BlackFideId "4160258"]
[WhiteElo "2596"]
[BlackElo "2545"]
[Result "0-1"]
[Round "03"]
[TimeControl "180+2"]
[Date "2023.04.18"]
[WhiteClock "0:00:02"]
[BlackClock "0:00:20"]

1. e4 {[%clk 0:02:57]}  e5 {[%clk 0:02:59]} 2. Nf3 {[%clk 0:02:55]}  Nc6 {[%clk 0:03:00]} 3. Bc4 {[%clk 0:02:52]}  d6 {[%clk 0:03:00]} 4. O-O {[%clk 0:02:50]}  Bg4 {[%clk 0:02:41]} 5. Nc3 {[%clk 0:02:45]}  Nf6 {[%clk 0:02:40]} 6. d3 {[%clk 0:02:42]}  Nd4 {[%clk 0:02:23]} 7. Bg5 {[%clk 0:02:10]}  c6 {[%clk 0:02:17]} 8. Be3 {[%clk 0:01:31]}  Nxf3+ {[%clk 0:02:16]} 9. gxf3 {[%clk 0:01:31]}  Bh5 {[%clk 0:02:17]} 10. Kh1 {[%clk 0:01:30]}  h6 {[%clk 0:02:11]} 11. Rg1 {[%clk 0:01:27]}  g5 {[%clk 0:02:12]} 12. Rg3 {[%clk 0:01:26]}  Bg6 {[%clk 0:02:11]} 13. d4 {[%clk 0:01:24]}  Qc7 {[%clk 0:02:11]} 14. d5 {[%clk 0:01:13]}  c5 {[%clk 0:01:27]} 15. Qe2 {[%clk 0:00:54]}  a6 {[%clk 0:01:23]} 16. a4 {[%clk 0:00:54]}  Be7 {[%clk 0:01:20]} 17. Rag1 {[%clk 0:00:32]}  Nh5 {[%clk 0:01:14]} 18. Rg4 {[%clk 0:00:32]}  Kf8 {[%clk 0:01:06]} 19. Kg2 {[%clk 0:00:23]}  Bf6 {[%clk 0:00:54]} 20. Kf1 {[%clk 0:00:24]}  Nf4 {[%clk 0:00:55]} 21. Bxf4 {[%clk 0:00:22]}  exf4 {[%clk 0:00:55]} 22. h4 {[%clk 0:00:22]}  Qe7 {[%clk 0:00:51]} 23. Qd2 {[%clk 0:00:22]}  Bh5 {[%clk 0:00:45]} 24. hxg5 {[%clk 0:00:17]}  hxg5 {[%clk 0:00:46]} 25. Rh1 {[%clk 0:00:18]}  Bxg4 {[%clk 0:00:46]} 26. Rxh8+ {[%clk 0:00:17]}  Bxh8 {[%clk 0:00:47]} 27. fxg4 {[%clk 0:00:17]}  Be5 {[%clk 0:00:44]} 28. f3 {[%clk 0:00:18]}  Kg7 {[%clk 0:00:44]} 29. Nd1 {[%clk 0:00:15]}  Rh8 {[%clk 0:00:44]} 30. Nf2 {[%clk 0:00:14]}  Qd7 {[%clk 0:00:34]} 31. b3 {[%clk 0:00:13]}  b5 {[%clk 0:00:34]} 32. axb5 {[%clk 0:00:11]}  axb5 {[%clk 0:00:35]} 33. Bd3 {[%clk 0:00:11]}  Qb7 {[%clk 0:00:32]} 34. Kg2 {[%clk 0:00:11]}  c4 {[%clk 0:00:28]} 35. bxc4 {[%clk 0:00:10]}  bxc4 {[%clk 0:00:29]} 36. Bxc4 {[%clk 0:00:11]}  Qb1 {[%clk 0:00:29]} 37. Bf1 {[%clk 0:00:09]}  Qa1 {[%clk 0:00:27]} 38. c4 {[%clk 0:00:09]}  Bd4 {[%clk 0:00:27]} 39. Nd3 {[%clk 0:00:05]}  Be3 {[%clk 0:00:22]} 40. Qc2 {[%clk 0:00:04]}  Ra8 {[%clk 0:00:22]} 41. Qb3 {[%clk 0:00:02]}  Ra2+ {[%clk 0:00:20]} 0-1


[Site "https://www.chess.com"]

[Event "Titled Tuesday Blitz April 18 Late 2023"]
[White "Meunier-Pion, Jean"]
[Black "Duda, Jan-Krzysztof"]
[WhiteFideId "20685327"]
[BlackFideId "1170546"]
[WhiteElo "2124"]
[BlackElo "2790"]
[Result "0-1"]
[Round "03"]
[TimeControl "180+2"]
[Date "2023.04.18"]
[WhiteClock "0:00:05"]
[BlackClock "0:00:04"]

1. e4 {[%clk 0:03:00]}  c6 {[%clk 0:03:00]} 2. d4 {[%clk 0:03:00]}  d5 {[%clk 0:03:00]} 3. e5 {[%clk 0:03:01]}  c5 {[%clk 0:02:56]} 4. dxc5 {[%clk 0:03:01]}  e6 {[%clk 0:02:57]} 5. a3 {[%clk 0:03:00]}  Bxc5 {[%clk 0:02:49]} 6. b4 {[%clk 0:02:57]}  Be7 {[%clk 0:02:48]} 7. Bb2 {[%clk 0:02:57]}  a5 {[%clk 0:02:45]} 8. b5 {[%clk 0:02:53]}  Nd7 {[%clk 0:02:44]} 9. Qg4 {[%clk 0:02:45]}  g5 {[%clk 0:02:40]} 10. h4 {[%clk 0:02:43]}  h5 {[%clk 0:02:40]} 11. Qg3 {[%clk 0:02:40]}  g4 {[%clk 0:02:37]} 12. Bd3 {[%clk 0:02:14]}  Nc5 {[%clk 0:02:34]} 13. Ne2 {[%clk 0:02:12]}  Nh6 {[%clk 0:02:30]} 14. Nd4 {[%clk 0:02:10]}  Nxd3+ {[%clk 0:01:44]} 15. cxd3 {[%clk 0:02:10]}  Nf5 {[%clk 0:01:32]} 16. Nxf5 {[%clk 0:02:09]}  exf5 {[%clk 0:01:33]} 17. a4 {[%clk 0:01:48]}  Be6 {[%clk 0:01:21]} 18. Nd2 {[%clk 0:01:36]}  Rc8 {[%clk 0:01:17]} 19. Kd1 {[%clk 0:01:21]}  d4 {[%clk 0:01:09]} 20. Qf4 {[%clk 0:01:19]}  Bxh4 {[%clk 0:01:00]} 21. Qxd4 {[%clk 0:01:08]}  Be7 {[%clk 0:00:56]} 22. Ke2 {[%clk 0:00:48]}  h4 {[%clk 0:00:47]} 23. Rac1 {[%clk 0:00:46]}  O-O {[%clk 0:00:35]} 24. Rxc8 {[%clk 0:00:42]}  Qxc8 {[%clk 0:00:36]} 25. Rc1 {[%clk 0:00:22]}  Qb8 {[%clk 0:00:36]} 26. Qf4 {[%clk 0:00:21]}  Kg7 {[%clk 0:00:35]} 27. Nf1 {[%clk 0:00:19]}  Kg6 {[%clk 0:00:34]} 28. Ne3 {[%clk 0:00:18]}  Bg5 {[%clk 0:00:34]} 29. Qd4 {[%clk 0:00:14]}  Rd8 {[%clk 0:00:33]} 30. Qc3 {[%clk 0:00:14]}  f4 {[%clk 0:00:24]} 31. Nc4 {[%clk 0:00:14]}  f3+ {[%clk 0:00:07]} 32. gxf3 {[%clk 0:00:14]}  gxf3+ {[%clk 0:00:08]} 33. Kxf3 {[%clk 0:00:15]}  Bxc1 {[%clk 0:00:09]} 34. Qxc1 {[%clk 0:00:14]}  Rxd3+ {[%clk 0:00:08]} 35. Ke2 {[%clk 0:00:13]}  Qd8 {[%clk 0:00:04]} 36. Nd6 {[%clk 0:00:14]}  Rd5 {[%clk 0:00:03]} 37. Qg1+ {[%clk 0:00:14]}  Kh7 {[%clk 0:00:03]} 38. Qg2 {[%clk 0:00:12]}  h3 {[%clk 0:00:02]} 39. Qe4+ {[%clk 0:00:13]}  Kg8 {[%clk 0:00:02]} 40. f4 {[%clk 0:00:10]}  Qh4 {[%clk 0:00:02]} 41. Qe3 {[%clk 0:00:04]}  Bg4+ {[%clk 0:00:03]} 42. Qf3 {[%clk 0:00:02]}  Bxf3+ {[%clk 0:00:02]} 43. Kxf3 {[%clk 0:00:03]}  h2 {[%clk 0:00:03]} 44. Ke4 {[%clk 0:00:04]}  h1=Q+ {[%clk 0:00:04]} 45. Kf5 {[%clk 0:00:04]}  Qh5+ {[%clk 0:00:04]} 46. Kf6 {[%clk 0:00:05]}  Q1h4# {[%clk 0:00:04]} 0-1


[Site "https://www.chess.com"]